Cogmind - Beta 13 @@@ ROGUE MODE // 2024.04.18 @ 15:21:44 Player: m1m1c Result: Destroyed by G-47 Trooper with Particle Gun Performance ------------- Evolutions (0) 0 Regions Visited (1) 200 Robots Destroyed (12) 60 Value Destroyed (311) 311 Prototype IDs (1) 20 Alien Tech Used (0) 0 Bonus (0) 0 TOTAL SCORE: 591 Bonus ------- None Cogmind --------- Core Integrity 0/250 Matter 206/300 Energy 99/100 System Corruption 0% Temperature Cool (9) Movement Rolling (105) Ox1 Location -10/Materials Parts ------- > --- POWER (1) -------- (None) > --- PROPULSION (2) --- Armored Wheel > --- UTILITY (2) ------ Large Storage Unit Sensor Array > --- WEAPON (2) ------- Light Assault Rifle > --- INVENTORY (15) --- Ion Engine Propulsion Shielding Hacking Suite Datajack Peak State ------------ > --- POWER ------------ Ion Engine > --- PROPULSION ------- Light Treads Light Treads > --- UTILITY ---------- Large Storage Unit Sensor Array > --- WEAPON ----------- Advanced Beam Cannon Advanced Beam Cannon > --- INVENTORY -------- Ion Engine Compact Wheel Propulsion Shielding Assault Rifle Light Assault Rifle Light Assault Rifle Datajack Mining Laser [Rating: 11] Favorites ----------- Power Ion Engine Engine Ion Engine Propulsion Light Treads Treads Light Treads Leg Aluminum Leg Wheel Armored Wheel Utility Sensor Array Device Sensor Array Storage Small Storage Unit Weapon Medium Laser Energy Gun Medium Laser Energy Cannon Advanced Beam Cannon Ballistic Gun Light Assault Rifle Special Weapon Mining Laser Build | -11 -10 ------- Run | Yrd Mat Slots Evolved . | . . Power . | . . Propulsion . | . . Utility . | . . Weapon . | . . Parts Attached 12 | 2 10 Power . | . . Engine . | . . Core . | . . Reactor . | . . Propulsion 3 | 2 1 Treads 2 | 2 . Leg . | . . Wheel 1 | . 1 Hover . | . . Flight . | . . Utility 2 | . 2 Device 1 | . 1 Storage 1 | . 1 Processor . | . . Hackware . | . . Protection . | . . Artifact . | . . Weapon 7 | . 7 Energy Gun . | . . Energy Cannon 3 | . 3 Ballistic Gun 3 | . 3 Ballistic Cannon . | . . Launcher . | . . Special Weapon 1 | . 1 Impact Weapon . | . . Slashing Weapon . | . . Piercing Weapon . | . . Special Melee Weapon . | . . Unidentified Prototypes 1 | . 1 Parts Lost 4 | . 4 Power . | . . Propulsion 2 | . 2 Utility . | . . Weapon 2 | . 2 Highest Loss Streak 2 | . 2 To Critical Strikes . | . . Average Slot Usage (%) 93 | . 93 Engine 13 | . 13 Treads 23 | . 23 Wheel 2 | . 2 Device 10 | . 10 Storage 14 | . 14 Energy Gun 15 | . 15 Energy Cannon 7 | . 7 Ballistic Gun 5 | . 5 Naked Turns . | . . Heaviest Build 34 | 14 34 Greatest Support 40 | 40 40 Greatest Overweight (x) 2 | . 2 Average Overweight (x) . | . . Largest Inventory Capacity 15 | 8 15 Average Capacity 11 | 8 11 Most Carried 9 | 6 9 Average Carried 6 | 5 6 Final Capacity 15 | 8 15 Final Carried 4 | 4 4 Class Distribution -------------------- 100% | Mutant Dominant Class ---------------- Mutant | -10/Materials Resources | -11 -10 ----------- Run | Yrd Mat Matter Collected 347 | 200 147 Remotely . | . . Salvage Created 358 | . 358 Parts 18 | . 18 Haulers Intercepted . | . . Recyclers Shooed . | . . Parts Field Recycled . | . . Retrieved Matter . | . . Parts Self-Destructed . | . . Prevented . | . . Kills | -11 -10 ------- Run | Yrd Mat Combat Hostiles Destroyed 8 | . 8 Guns 5 | . 5 Cannons 3 | . 3 Classes Destroyed 4 | . 4 Operator 2 | . 2 Watcher 2 | . 2 Swarmer 2 | . 2 Grunt 6 | . 6 Best Kill Streak 2 | . 2 Combat Bots Only 2 | . 2 Max Kills in Single Turn 1 | . 1 Gunslinging . | . . Exploded . | . . Melee . | . . Uniques/NPCs Destroyed . | . . Combat | -11 -10 -------- Run | Yrd Mat Hostile Shots Fired 101 | . 101 Missed 26 | . 26 Damage Taken 907 | . 907 Core 253 | . 253 Absorbed by Shields . | . . Core Remaining (%) 100 | 100 . Volleys Fired 50 | . 50 Largest 2 | . 2 Hottest 168 | . 168 Shots Fired 97 | . 97 Gun 63 | . 63 Cannon 32 | . 32 Launcher . | . . Special 2 | . 2 Kinetic 27 | . 27 Thermal 70 | . 70 Explosive . | . . Electromagnetic . | . . Robot Hit Streak 9 | . 9 Robot Miss Streak 3 | . 3 Penetration Max . | . . Secondary Targets 1 | . 1 Max Gunslinging Chain 1 | . 1 Shots Hit Robots 60 | . 60 Core Hits 23 | . 23 Critical Kills . | . . Critical Parts Destroyed 1 | . 1 Critical Strikes 5 | . 5 Burn 4 | . 4 Destroy 1 | . 1 Melee Attacks . | . . Impact . | . . Slashing . | . . Piercing . | . . Sneak Attacks . | . . Combat Hostiles . | . . Follow-up Attacks . | . . Damage Inflicted 855 | . 855 Guns 520 | . 520 Cannons 328 | . 328 Explosions . | . . Melee . | . . Ramming 7 | . 7 Kinetic 168 | . 168 Thermal 680 | . 680 Explosive . | . . Electromagnetic . | . . Impact . | . . Slashing . | . . Piercing . | . . Highest Corruption . | . . Average Corruption . | . . Corruption Purged . | . . Corruption Blocked . | . . Overload Shots . | . . Overflow Damage 2 | . 2 Projectiles 2 | . 2 Explosions . | . . Melee . | . . Knockbacks . | . . Impact . | . . Kinetic . | . . Secondary . | . . Self-Inflicted Damage . | . . Shots . | . . Rammed 1 | . 1 Targets Rammed 1 | . 1 Kicked . | . . Crushed . | . . Highest Temperature 733 | . 733 Average Temperature 191 | . 191 Received Heat Transfer 402 | . 402 Effects 19 | . 19 Shutdowns 3 | . 3 Energy Bleed 3 | . 3 Interference 1 | . 1 Matter Decay 2 | . 2 Short Circuit 4 | . 4 Damage (minor) 1 | . 1 Damage (major) 4 | . 4 Damage (core) 1 | . 1 Siege Activations . | . . Robots Corrupted . | . . Combat Hostiles . | . . Parts Fried . | . . Impact Corruptions . | . . Robots Melted . | . . Combat Hostiles . | . . Parts Melted 7 | . 7 Heat Transferred 1924 | . 1924 Parts Sabotaged . | . . Parts Stolen . | . . Parts Stripped . | . . Power Chain Reactions . | . . Alert | -11 -10 ------- Run | Yrd Mat Peak Influence 168 | . 168 Initial . | . . Average 84 | . 84 Maximum Alert Level . | . . Low Security (%) 100 | 100 100 Level 1 . | . . Level 2 . | . . Level 3 . | . . Level 4 . | . . Level 5 . | . . High Security . | . . Max Security . | . . Squads Dispatched 4 | . 4 Investigation 2 | . 2 Extermination . | . . Reinforcement 2 | . 2 Assault . | . . Garrison . | . . Intercept . | . . Searches Triggered . | . . Construction Impeded . | . . Haulers Reinforced . | . . Active Scanning Responses . | . . Cargo Convoy Interrupts . | . . Stealth | -11 -10 --------- Run | Yrd Mat Distress Signals 2 | . 2 Communications Jammed . | . . Distress Signals . | . . Times Spotted 25 | . 25 Peak Tracking Total 4 | . 4 Tactical Retreats 1 | . 1 Traps | -11 -10 ------- Run | Yrd Mat Traps Triggered 1 | . 1 Indirectly . | . . Trap Hack Attempts . | . . Triggered . | . . Disarmed . | . . Reprogrammed . | . . Reused . | . . Traps Extracted . | . . Installed . | . . Triggered . | . . Machines | -11 -10 ---------- Run | Yrd Mat Machines Disabled 1 | . 1 Max in Single Turn 1 | . 1 Machines Repaired . | . . Machines Dismantled . | . . Machines Sabotaged . | . . Overloaded Fab Kills . | . . Hacking | -11 -10 --------- Run | Yrd Mat Machines Accessed 5 | . 5 Terminals 5 | . 5 Fabricators . | . . Repair Stations . | . . Recycling Units . | . . Scanalyzers . | . . Garrison Access . | . . Total Hacks 12 | . 12 Successful 5 | . 5 Failed 7 | . 7 Catastrophic 2 | . 2 Database Lockouts . | . . Manual 12 | . 12 Terminals 12 | . 12 Fabricators . | . . Repair Stations . | . . Recycling Units . | . . Scanalyzers . | . . Garrison Access . | . . Terminal Hacks 3 | . 3 Terminal Index 1 | . 1 Recall Investigation 1 | . 1 Registered Components 1 | . 1 Fabricator Hacks . | . . Repair Station Hacks . | . . Recycling Unit Hacks . | . . Scanalyzer . | . . Garrison Access Hacks . | . . Unauthorized Hacks 2 | . 2 Terminals 2 | . 2 Assimilate 1 | . 1 Botnet 1 | . 1 Fabricators . | . . Repair Stations . | . . Recycling Units . | . . Scanalyzers . | . . Garrison Access . | . . Data Cores Recovered . | . . Used . | . . Hacking Detections 5 | . 5 Full Trace Events 2 | . 2 Feedback Events . | . . Feedback Blocked . | . . Robot Schematics Acquired . | . . Robots Built . | . . Authchips . | . . Time . | . . Total Robot Build Rating . | . . Part Schematics Acquired . | . . Parts Built . | . . Authchips . | . . Time . | . . Total Part Build Rating . | . . Parts Repaired . | . . Time . | . . Parts Recycled . | . . Recycled Matter . | . . Retrieved Matter . | . . Retrieved Components . | . . Parts Scanalyzed . | . . Part Schematics Acquired . | . . Parts Damaged . | . . Bothacking | -11 -10 ------------ Run | Yrd Mat Used RIF Installer . | . . Robots Hacked . | . . Non-combat . | . . Combat . | . . Robot Hacks Applied . | . . Relay Couplers Released . | . . Fabnet Peak Effective % . | . . Robots Rewired . | . . Allies Hacked . | . . Hacks Repelled . | . . Allies | -11 -10 -------- Run | Yrd Mat Total Allies . | . . Largest Group . | . . Highest-Rated Group . | . . Highest-Rated Ally . | . . Total Orders . | . . Ally Attacks . | . . Total Damage . | . . Kills . | . . Allies Corrupted . | . . Allies Melted . | . . Intel | -11 -10 ------- Run | Yrd Mat Robot Analysis Total . | . . Derelict Logs Recovered . | . . Drone Launches . | . . Drone Recoveries . | . . Exploration | -11 -10 ------------- Run | Yrd Mat Turns Passed 854 | 4 850 Spaces Moved 435 | 1 434 Core . | . . Treads 346 | 1 345 Legs . | . . Wheels 89 | . 89 Hover . | . . Flight . | . . Fastest Speed 105 | 160 105 Average Speed 151 | 160 151 Slowest Speed 160 | 160 160 Overloaded Moves . | . . Propulsion Burnouts . | . . Robots Hopped . | . . Cave-ins Triggered . | . . Exploration Rate (%) 33 | 2 65 Regions Visited 1 Branch Regions . Pre-discovered Areas . | . . Known Exits Taken . | . . Unknown Exits Taken 1 | 1 . Scrap Searched . | . . Spaces Dug 2 | . 2 Terrain Destroyed 2 | . 2 Melee . | . . Projectile 2 | . 2 AOE . | . . Terrain Rammed . | . . Walls Destroyed . | . . Machines Disabled . | . . Actions | -11 -10 --------- Run | Yrd Mat Total 539 | 4 535 Wait 19 | . 19 Move 434 | . 434 Hop . | . . Pick Up 9 | . 9 Fast Attach 3 | . 3 Attach 8 | 2 6 Detach 1 | . 1 Swap 1 | . 1 Drop 13 | 2 11 Fire 50 | . 50 Melee . | . . Ram . | . . Kick . | . . Crush 1 | . 1 Escape Stasis . | . . Rewire . | . . Trap . | . . Miscellaneous . | . . Route ------- -11/Scrapyard -10/Materials (discovered 2 exits: [*Mat x2]) History --------- Turn | Location | Event 5 | -11/Scrapyard | Discovered new exit (range 0) 5 | -11/Scrapyard | Entered Materials 323 | -10/Materials | Build established: Mutant 775 | -10/Materials | Discovered new exit (range 5) 809 | -10/Materials | Discovered new exit (range 13) 820 | -10/Materials | Core integrity fell below 50% 840 | -10/Materials | Core integrity fell below 20% 855 | -10/Materials | Destroyed by G-47 Trooper with Particle Gun Last Messages --------------- K-01 Serf collects debris. M-13 Machinist repairs O-16 Technician. EXIT=FOUND M-13 Machinist repairs O-16 Technician. Destroyed Datajack. Acquired 32 matter. EXIT=FOUND K-01 Serf cleans the Processing Tank. Processing Tank disabled. O-16 Technician destroyed. Switching to secondary target: G-47 Trooper. Dropped Broken Ion Engine. K-01 Serf collects debris. Acquired Hacking Suite. M-13 Machinist repairs G-47 Trooper. G-34 Mercenary suffers critical hit (Destroy). Destroyed Ion Engine. Assault Rifle destroyed. K-01 Serf collects debris. R-06 Scavenger collects Hover Unit. Map ----- +----------------------------------------------------+ | ???????????????? ??????????????????????????????? | | ??????+###??#### #?????????????????????????????? | | ?????? ?? #?????????????????????????????? | | ?????? ?? ##????????????????????????????? | | ??????" "?" #????????????????????????????? | | ????""" """ #????????????????????????????? | | ????""" """ #????????????????????????????? | | ?#?? #????????????????????????????? | | ?# #????????????????????????????? | | ?# """" """" #????????????????????????????? | | ?# """" """" #?????????? ?????????????????? | | ?# """" """" #?????????? ?????????????????? | | ?# #?????????? ?????????????????? | | ?# #?????????? ?????????????????? | | ?# #?????????? ?????????????????? | | ?# % #?????????? ?????????????????? | | ## ^ ######+##########??? ?????????????????? | | #?# #??# #????????????????? | | ^ #?# " """"" #??# #????????????????? | | ######## #?# """"""""" #??# #????????????????? | | ???????# #?# """ """ #??# #????????????#???? | | ???????# #?# #??# #?????????? #???? | | ???????# #?# #??# #????????? #???? | | ?????### #?#######+########## ########## #???? | | ###### #?# """ r %* gkm #???? | | !#?# "R" @ g * #???? | | T #?# " " """"" " """ """"" #???? | | #?# """"" """"" """"" #???? | | ###### #?# """"" """"" """"" #???? | | ?????## ##?# ###?? | | ??????# #??# #?? | | ??????# #??# < #?? | | ??????# #??# ######### #?? | | ####### #??# #???????#########+############### | | #??# #??????????# ## | | #??# #??????????# % # T """ | | !!! #??# #??????????# ## """ | | !!! #?## ##?????????# ## """ | | !! ### ###+#####?# ## | | ##########+#########+# | | ######### # | | # # [ # | | = ## ####### # + ########### | | = ########?????# # # #?????????? | | #????????????# ######### ##????????? | | #????????????# ######## ########?? | | "T" #????????????# ## #?? | | """ #????????????# ## #?? | | ##########????????????# ######## ## #?? | | ###???????????????????+ ???????## ### " ### | +----------------------------------------------------+ Best States ------------- Heat Dissipation 25 Energy Generation 10 Energy Capacity 250 Matter Stores 300 Matter Capacity 300 Sight Range 16 Robot Scan Range 14 Terrain Scan Density 10 Evasion (%) 40 Recoil Reduction 2 Item Schematics ----------------- None Robot Schematics ------------------ None Fabricated ------------ Nothing Alien Tech Used ----------------- None Achievements -------------- None Challenges ------------ None Game ------ Seed CloakingBarrageMultirail Manual? 0 Play Time 00:08:14 Cumulative 41.4 hours Start 2024.04.18 @ 15:13:28 End 2024.04.18 @ 15:21:44 Sessions 1 Manual Loads 0 Difficulty Rogue Special Mode None Game No. 95 Rogue 93 Adventurer 0 Explorer 2 Win Type - Total 0 Types 0/0/0/0/0/0/0/0/0 Lore% 19 Gallery% 37 Achievement% 30 Wizard Run 0 Options --------- Layout 1 ASCII 1 Keyboard 0 Movement Arrows Keybinds 1 Fullscreen 1 Font 18/SmallcapsGlow Map View 50x40 Zoom Use 0% Tactical HUD 0 Map Filters NONE Filters NONE Steam 1 RUN: 97f65d1e-676e-4221-b2a7-73470f35edd1